Cogmind - Beta 16 --- EXPLORER MODE // 2025.12.10 @ 15:27:36 Player: K.K.Y. Result: Destroyed by MT-WED(R) with Subdweller Machine Gun Performance ------------- Evolutions (0) 0 Regions Visited (3) 600 Robots Destroyed (33) 165 Value Destroyed (925) 925 Prototype IDs (12) 240 Alien Tech Used (0) 0 Bonus (0) 0 TOTAL SCORE: 1930 Bonus ------- None Cogmind --------- Core Integrity 0/250 Matter 300/300 Energy 39/100 System Corruption 0% Temperature Cool (0) Movement Flying (200) Ox2 Location -10/Subcaves Parts ------- > --- POWER (1) -------- (None) > --- PROPULSION (3) --- Flight Unit > --- UTILITY (2) ------ Improved Signal Interpreter > --- WEAPON (2) ------- Subdweller Laser EM Pulse Cannon > --- INVENTORY (5) ---- Improved Ion Engine Small Storage Unit Barrage Gun Assault Cannon Plasma Cutter Peak State ------------ > --- POWER ------------ Light Ion Engine > --- PROPULSION ------- Flight Unit Flight Unit Flight Unit > --- UTILITY ---------- Sensor Array Improved Signal Interpreter > --- WEAPON ----------- EM Pulse Cannon Barrage Gun > --- INVENTORY -------- Small Storage Unit EM Pulse Cannon Assault Cannon Plasma Cutter Flamer [Rating: 15] Favorites ----------- Power Light Ion Engine Engine Light Ion Engine Propulsion Flight Unit Wheel Wheel Flight Unit Flight Unit Utility Improved Signal Interpreter Device Sensor Array Processor Improved Signal Interpreter Weapon EM Pulse Cannon Energy Gun Subdweller Laser Energy Cannon EM Pulse Cannon Ballistic Gun Light Assault Rifle Ballistic Cannon Assault Cannon Special Weapon Mining Laser Build | -11 -10 -10 -10 ------- Run | Yrd Mat Min Sub Slots Evolved 1 | . 1 . . Power . | . . . . Propulsion 1 | . 1 . . Utility . | . . . . Weapon . | . . . . Parts Attached 25 | 4 8 5 8 Power 5 | . 1 2 2 Engine 5 | . 1 2 2 Core . | . . . . Reactor . | . . . . Propulsion 8 | 2 5 . 1 Treads . | . . . . Leg . | . . . . Wheel 2 | 2 . . . Hover . | . . . . Flight 6 | . 5 . 1 Utility 3 | . 2 1 . Device 2 | . 2 . . Storage . | . . . . Processor 1 | . . 1 . Hackware . | . . . . Protection . | . . . . Artifact . | . . . . Weapon 9 | 2 . 2 5 Energy Gun 3 | 2 . . 1 Energy Cannon 2 | . . 1 1 Ballistic Gun 2 | . . . 2 Ballistic Cannon 1 | . . 1 . Launcher . | . . . . Special Weapon 1 | . . . 1 Impact Weapon . | . . . . Slashing Weapon . | . . . . Piercing Weapon . | . . . . Special Melee Weapon . | . . . . Unidentified Prototypes . | . . . . Parts Lost 9 | . . . 9 Power 2 | . . . 2 Propulsion 3 | . . . 3 Utility 1 | . . . 1 Weapon 3 | . . . 3 Highest Loss Streak 2 | . . . 2 To Critical Strikes . | . . . . Average Backups 4 | 2 4 5 4 Power . | . 1 . . Propulsion . | . . . . Utility 1 | 1 1 1 1 Weapon 2 | . 1 2 2 Tool/Special . | . . . . Unused Backups 4 | . . . 4 Power 1 | . . . 1 Propulsion . | . . . . Utility 1 | . . . 1 Weapon 1 | . . . 1 Tool/Special 1 | . . . 1 Average Slot Usage (%) 77 | . 92 91 71 Engine 7 | . 8 12 7 Flight 26 | . 27 37 24 Device 9 | . 24 15 5 Processor 9 | . . 8 12 Energy Gun 8 | . 25 8 4 Energy Cannon 9 | . . 8 12 Ballistic Gun 2 | . . . 3 Peak Build Rating 15 | 4 10 14 15 Average Rating 10 | 2 9 11 11 On Entrance 6 | . 4 10 12 Avg Prop Armor Cover (%) . | . . . . Naked Turns . | . . . . Heaviest Build 15 | 3 8 11 15 Greatest Support 20 | 20 20 12 12 Greatest Overweight (x) 3 | . 1 . 3 Average Overweight (x) . | . . . . Largest Inventory Capacity 5 | 5 5 5 5 Average Capacity 5 | 5 5 5 5 Most Carried 5 | 5 5 5 5 Average Carried 4 | 3 4 5 4 Final Capacity 5 | 5 5 5 5 Final Carried 5 | 5 5 5 5 Class Distribution -------------------- 76% | Hacker-Mutant 23% | Scavenger-Mutant Dominant Class ---------------- Hacker-Mutant | -10/Materials Hacker-Mutant | -10/Mines Hacker-Mutant | -10/Subcaves Resources | -11 -10 -10 -10 ----------- Run | Yrd Mat Min Sub Matter Collected 515 | 240 80 70 125 Remotely . | . . . . Salvage Created 1439 | 157 419 . 863 Parts 85 | 16 20 . 49 Haulers Intercepted 2 | . 2 . . Recyclers Shooed . | . . . . Parts Field Recycled . | . . . . Retrieved Matter . | . . . . Parts Self-Destructed . | . . . . Prevented . | . . . . Parts Restored . | . . . . Kills | -11 -10 -10 -10 ------- Run | Yrd Mat Min Sub Combat Hostiles Destroyed 24 | . 6 . 18 Guns 10 | . 6 . 4 Cannons 9 | . . . 9 AOE 1 | . . . 1 Classes Destroyed 8 | 2 4 . 2 Tunneler 3 | 3 . . . Hauler 2 | . 2 . . Recycler 2 | 1 1 . . Watcher 2 | . 2 . . Swarmer 4 | . 4 . . Grunt 2 | . 2 . . Sentry 1 | . . . 1 Subdweller 17 | . . . 17 Best Kill Streak 3 | 2 3 . 2 Combat Bots Only 2 | . 2 . 2 Max Kills in Single Turn 1 | 1 1 . 1 Gunslinging . | . . . . Exploded 1 | . . . 1 Melee . | . . . . Uniques/NPCs Destroyed . | . . . . Combat | -11 -10 -10 -10 -------- Run | Yrd Mat Min Sub Hostile Shots Fired 115 | . 25 . 90 Missed 57 | . 11 . 46 Hits 58 | . 14 . 44 Projectile 58 | . 14 . 44 Critical Strikes 1 | . . . 1 Damage Taken 821 | . 120 18 683 Core 258 | . 10 . 248 Absorbed by Shields . | . . . . Ignored by Resistances 491 | . 78 10 403 Core Remaining (%) 100 | 100 . . . Volleys Fired 130 | 6 40 . 84 Largest 2 | 2 2 . 2 Hottest 163 | 80 80 . 163 Shots Fired 218 | 12 77 . 129 Gun 133 | 12 77 . 44 Cannon 78 | . . . 78 Launcher . | . . . . Special 7 | . . . 7 Kinetic 42 | . . . 42 Thermal 52 | 6 37 . 9 Explosive . | . . . . Electromagnetic 124 | 6 40 . 78 Robot Hit Streak 16 | 11 16 . 16 Robot Miss Streak 2 | . 2 . 1 Penetration Max . | . . . . Secondary Targets 1 | . 1 . . Max Gunslinging Chain 1 | . 1 . . Shots Hit Robots 164 | 11 63 . 90 Core Hits 47 | 5 15 . 27 Critical Kills 1 | . . . 1 Critical Parts Destroyed . | . . . . Critical Strikes 3 | . 1 . 2 Destroy 1 | . . . 1 Corrupt 2 | . 1 . 1 Melee Attacks . | . . . . Impact . | . . . . Slashing . | . . . . Piercing . | . . . . Sneak Attacks . | . . . . Combat Hostiles . | . . . . Follow-up Attacks . | . . . . Damage Inflicted 2642 | 134 880 . 1628 Guns 1164 | 134 788 . 242 Cannons 1250 | . . . 1250 Explosions 204 | . 92 . 112 Melee . | . . . . Ramming . | . . . . Kinetic 220 | . . . 220 Thermal 610 | 54 398 . 158 Explosive . | . . . . Electromagnetic 1812 | 80 482 . 1250 Impact . | . . . . Slashing . | . . . . Piercing . | . . . . Highest Corruption . | . . . . Average Corruption . | . . . . Corruption Purged . | . . . . Corruption Blocked . | . . . . Overload Shots . | . . . . Overflow Damage . | . . . . Projectiles . | . . . . Explosions . | . . . . Melee . | . . . . Knockbacks . | . . . . Impact . | . . . . Kinetic . | . . . . Secondary . | . . . . Self-Inflicted Damage . | . . . . Shots . | . . . . Rammed . | . . . . Targets Rammed . | . . . . Kicked . | . . . . Crushed . | . . . . Highest Temperature 317 | 34 317 . 17 Average Temperature 65 | 12 93 . 8 Received Heat Transfer 246 | . 66 . 180 Siege Activations . | . . . . Martial Activations . | . . . . Shielding Activations . | . . . . Robots Disrupted . | . . . . Combat Hostiles . | . . . . Robots Corrupted 6 | . 2 . 4 Combat Hostiles 4 | . . . 4 Parts Fried 17 | . 3 . 14 Impact Corruptions . | . . . . Robots Melted . | . . . . Combat Hostiles . | . . . . Parts Melted 1 | . . . 1 Heat Transferred 1100 | 125 800 . 175 Parts Sabotaged . | . . . . Parts Stolen . | . . . . Parts Stripped . | . . . . Power Chain Reactions 4 | . 3 . 1 Alert | -11 -10 -10 -10 ------- Run | Yrd Mat Min Sub Maximum Alert Level . | . . . . Low Security (%) 100 | 100 100 100 . Level 1 . | . . . . Level 2 . | . . . . Level 3 . | . . . . Level 4 . | . . . . Level 5 . | . . . . High Security . | . . . . Max Security . | . . . . Peak Influence 39 | 10 39 . . Initial 4 | . 4 . . Average 5 | 3 8 . . Influence Increases 235 | 20 195 . 20 Destroy 0b10 Robot/C 140 | . 120 . 20 Destroy 0b10 Robot/NC 45 | 20 25 . . Destroy Leader 38 | . 38 . . Successful Hack 1 | . 1 . . Disable Machine 4 | . 4 . . Destroy Structure 7 | . 7 . . Influence Decreases 235 | 10 205 . 20 Entered New Map 6 | . 6 . . Time Decay 229 | 10 199 . 20 Squads Dispatched . | . . . . Investigation . | . . . . Extermination . | . . . . Reinforcement . | . . . . Assault . | . . . . Garrison . | . . . . Intercept . | . . . . Searches Triggered . | . . . . Construction Impeded . | . . . . Haulers Reinforced . | . . . . Active Scanning Responses . | . . . . Cargo Convoy Interrupts . | . . . . Stealth | -11 -10 -10 -10 --------- Run | Yrd Mat Min Sub Distress Signals 1 | . 1 . . Communications Jammed . | . . . . Distress Signals . | . . . . Times Spotted 41 | . 13 . 28 Peak Tracking Total 3 | . 3 . 3 Tactical Retreats 9 | . . . 9 Traps | -11 -10 -10 -10 ------- Run | Yrd Mat Min Sub Traps Triggered 3 | . 1 . 2 Indirectly . | . . . . Trap Hack Attempts . | . . . . Triggered . | . . . . Disarmed . | . . . . Reprogrammed . | . . . . Reused . | . . . . Traps Extracted . | . . . . Installed . | . . . . Triggered . | . . . . Machines | -11 -10 -10 -10 ---------- Run | Yrd Mat Min Sub Machines Disabled 2 | . 1 . 1 Max in Single Turn 1 | . 1 . 1 Machines Repaired . | . . . . Machines Dismantled . | . . . . Machines Sabotaged . | . . . . Overloaded Fab Kills . | . . . . Hacking | -11 -10 -10 -10 --------- Run | Yrd Mat Min Sub Machines Accessed 9 | . 6 1 2 Terminals 6 | . 6 . . Fabricators . | . . . . Repair Stations . | . . . . Recycling Units . | . . . . Scanalyzers . | . . . . Garrison Access . | . . . . Total Hacks 12 | . 9 1 2 Successful 9 | . 6 1 2 Failed 3 | . 3 . . Catastrophic . | . . . . Database Lockouts . | . . . . Manual 10 | . 10 . . Terminals 9 | . 9 . . Fabricators . | . . . . Repair Stations . | . . . . Recycling Units . | . . . . Scanalyzers . | . . . . Garrison Access . | . . . . Terminal Hacks 3 | . . 1 2 Open Door 2 | . . 1 1 Proto ID Catalog 1 | . . . 1 Fabricator Hacks . | . . . . Repair Station Hacks . | . . . . Recycling Unit Hacks . | . . . . Scanalyzer . | . . . . Garrison Access Hacks . | . . . . Unauthorized Hacks 6 | . 6 . . Terminals 6 | . 6 . . Botnet 6 | . 6 . . Fabricators . | . . . . Repair Stations . | . . . . Recycling Units . | . . . . Scanalyzers . | . . . . Garrison Access . | . . . . Data Cores Recovered . | . . . . Used . | . . . . Hacking Detections 5 | . 5 . . Full Trace Events . | . . . . Feedback Events . | . . . . Feedback Blocked . | . . . . Robot Schematics Acquired . | . . . . Robots Built . | . . . . Authchips . | . . . . Time . | . . . . Total Robot Build Rating . | . . . . Part Schematics Acquired . | . . . . Parts Built . | . . . . Authchips . | . . . . Time . | . . . . Total Part Build Rating . | . . . . Part Studies Acquired . | . . . . Parts Repaired . | . . . . Time . | . . . . Parts Recycled . | . . . . Recycled Matter . | . . . . Retrieved Matter . | . . . . Retrieved Components . | . . . . Parts Scanalyzed . | . . . . Part Schematics Acquired . | . . . . Parts Damaged . | . . . . Bothacking | -11 -10 -10 -10 ------------ Run | Yrd Mat Min Sub Used RIF Installer . | . . . . Robots Hacked . | . . . . Non-combat . | . . . . Combat . | . . . . Robot Hacks Applied . | . . . . Relay Couplers Released . | . . . . Fabnet Peak Effective % . | . . . . Robots Rewired . | . . . . Allies Hacked . | . . . . Hacks Repelled . | . . . . Allies | -11 -10 -10 -10 -------- Run | Yrd Mat Min Sub Total Allies . | . . . . Largest Group . | . . . . Highest-Rated Group . | . . . . Highest-Rated Ally . | . . . . Total Orders . | . . . . Ally Attacks . | . . . . Total Damage . | . . . . Kills . | . . . . Allies Corrupted . | . . . . Allies Melted . | . . . . Intel | -11 -10 -10 -10 ------- Run | Yrd Mat Min Sub Active Infowar (turns) 1634 | . 449 296 889 Sensors 1634 | . 449 296 889 Terrain 474 | . 398 76 . Robot Analysis Total . | . . . . Derelict Logs Recovered 3 | . . 1 2 Drone Launches . | . . . . Drone Recoveries . | . . . . Exploration | -11 -10 -10 -10 ------------- Run | Yrd Mat Min Sub Turns Passed 2907 | 74 449 296 2088 Spaces Moved 3580 | 54 626 689 2211 Core 30 | 30 . . . Treads . | . . . . Legs . | . . . . Wheels 99 | 24 75 . . Hover . | . . . . Flight 3451 | . 551 689 2211 Fastest Speed 34 | 50 34 34 34 Average Speed 55 | 63 39 34 66 Slowest Speed 280 | 80 120 34 280 Overloaded Moves . | . . . . Propulsion Burnouts . | . . . . Robots Hopped 6 | . 1 5 . Potential Cave-ins . | . . . . Cave-ins Triggered . | . . . . Exploration Rate (%) 72 | 5 99 98 89 Regions Visited 3 Branch Regions 2 Pre-discovered Areas 3 | . . 1 2 Known Exits Taken 3 | 1 1 1 . Unknown Exits Taken . | . . . . Scrap Searched 8 | . . . 8 Spaces Dug . | . . . . Terrain Destroyed 13 | . 7 . 6 Melee . | . . . . Projectile . | . . . . AOE 13 | . 7 . 6 Terrain Rammed . | . . . . Walls Destroyed . | . . . . Machines Disabled . | . . . . Actions | -11 -10 -10 -10 --------- Run | Yrd Mat Min Sub Total 4266 | 81 748 744 2693 Wait 506 | 9 68 47 382 Move 3565 | 53 623 678 2211 Hop 6 | . 1 5 . Pick Up 18 | 9 4 2 3 Fast Attach 10 | . 3 1 6 Attach 9 | 4 3 . 2 Detach . | . . . . Swap 9 | . 2 6 1 Drop 13 | . 4 5 4 Fire 130 | 6 40 . 84 Melee . | . . . . Ram . | . . . . Kick . | . . . . Crush . | . . . . Escape Stasis . | . . . . Rewire . | . . . . Trap . | . . . . Miscellaneous . | . . . . Route ------- -11/Scrapyard -10/Materials (discovered 5 exits: *Mat x3 / *Min x2) -10/Mines (discovered 3 exits: *Mat x2 / *Sub) -10/Subcaves (discovered 3 exits: *Mat x2 / *Rec) History --------- Turn | Location | Event 3 | -11/Scrapyard | Identified exit to Materials 3 | -11/Scrapyard | Discovered exit to Materials (range 16) 75 | -11/Scrapyard | Entered Materials 75 | -10/Materials | Evolved 1 slot: Propulsion x1 269 | -10/Materials | Identified exit to Materials 269 | -10/Materials | Discovered exit to Materials (range 11) 312 | -10/Materials | Build established: Hacker-Mutant 313 | -10/Materials | Identified exit to Mines 313 | -10/Materials | Discovered exit to Mines (range 8) 365 | -10/Materials | Discovered exit to Materials (range 7) 400 | -10/Materials | Discovered exit to Mines (range 10) 457 | -10/Materials | Discovered exit to Materials (range 15) 524 | -10/Materials | Entered Mines 524 | -10/Mines | Discovered exit to Materials (range 14) 534 | -10/Mines | Met a Derelict bent on vengeance 552 | -10/Mines | Met a Derelict who couldn't figure out how to use a Trap Extractor 617 | -10/Mines | Discovered exit to Materials (range 11) 679 | -10/Mines | Identified exit to Subcaves 679 | -10/Mines | Discovered exit to Subcaves (range 8) 690 | -10/Mines | Deemed a non-threat by the Exiles lab entrance 754 | -10/Mines | Received a Rocket Launcher from a helpful Derelict 769 | -10/Mines | Learned location of Zion (-6) 820 | -10/Mines | Entered Subcaves 835 | -10/Subcaves | A swath of the cavern ceiling suddenly collapsed 888 | -10/Subcaves | Identified exit to Materials 888 | -10/Subcaves | Discovered exit to Materials (range 13) 917 | -10/Subcaves | Visited 4L-MR0's lab 1272 | -10/Subcaves | Identified exit to Recycling 1272 | -10/Subcaves | Discovered exit to Recycling (range 12) 1346 | -10/Subcaves | Discovered exit to Materials (range 14) 1348 | -10/Subcaves | Ambushed by Subdwellers from Twisted Machinery 1458 | -10/Subcaves | A swath of the cavern ceiling suddenly collapsed 1506 | -10/Subcaves | Learned location of Mines (-9) 1528 | -10/Subcaves | Ambushed by Subdwellers from Twisted Machinery 1553 | -10/Subcaves | Core integrity fell below 50% 1570 | -10/Subcaves | Build established: Scavenger-Mutant 1805 | -10/Subcaves | Shifting Twisted Machinery released Sub. Laser 1876 | -10/Subcaves | Shifting Twisted Machinery released Sub. Power Source 1922 | -10/Subcaves | Core integrity fell below 20% 2123 | -10/Subcaves | Build established: Hacker-Mutant 2908 | -10/Subcaves | Destroyed by MT-WED(R) with Subdweller Machine Gun Last Messages --------------- 02348_ Searching scrap... 02348_ Found Battle Cannon. 02348_ Found Scrap Shield. 02348_ Found 54 Matter. 02350_ Searching scrap... 02350_ Found Piercing Trap. 02350_ Found 38 Matter. 02362_ Searching scrap... 02362_ Found Battle Rifle. 02362_ Found 54 Matter. 02420_ Searching scrap... 02420_ Found Battle Cannon. 02420_ Found Sub. Machine Gun. 02420_ Found 50 Matter. 02432_ Searching scrap... 02432_ Found Piercing Trap. 02432_ Found 30 Matter. 02521_ Sub. Power Source shoots sparks and powers down. 02538_ Dropped Broken Sub. Power Source. Map ----- +----------------------------------------------------+ | ??# #???# ## #??????????????? | | ??# ## ####??# ### ## #??????????????? | | ??# ### #?????### ### #?####?????????? | | ??##### #???????## ### ## #?????????? | | ?????# ##?##?????##??## #?????????? | | ?????# #?# #??????????## ##?????????? | | ?????## ## #####???????## #??????????? | | ??????# # ###??????# ##??????????? | | ??????#### #??????## #####???????????? | | ????????## # #??????# ##???????????????? | | ????????# ### ####???## ##????????????????? | | ????????# #?# # ####?## ##????????????????? | | #???????# ####?# #### ###??????????????? | | ##?????## #?????# ## # ##?????????????? | | #????## ##?????# #?????????????? | | ##??## ##????### #" #?????????????? | | #### #?????# ###### ##?????????????? | | ##?????# ##????# #??????????????? | | #??????## #????# #?????????????? | | ## &#???????# ##????##" #?????????????? | | # #### %#####??## #??????##""##?????????????? | | # #??# = ##?# #???????#""##?????????????? | | ## #?## ### ##??????# ""##????????????? | | ?# ## ## ##?????# """##???????????? | | ?## # ####### """"#???????????? | | ??###### @ "####"""#???????????? | | ???????# # """### "#???????????? | | ???????## ## ##### """"## "#???????????? | | ????????##### ##???# R###"""""" "#???????????? | | ???????????## ""#???## ### """ "##??????????? | | ???????????# "##???## #####" "" #??????????? | | ????????##### ""##??# #### #### #?????????? | | ???????## ## """#??# "" "##" "#?# #?????????? | | ???????# """###"""""" ! "#???###?????????? | | ???????# """""""""" [%"##??????????????? | | ???????# ###""""""" ## !! "#??????????????? | | ???????# #??" """ ######" #??????????????? | | ???????# #???""" #????## ##?????????????? | | ???????# #???# ##??????## #?????????????? | | ???????## ###?### #?# ??????## ##????????????? | | ????????# ##??? ### ??###### ##???????????? | | ????????# #????" ??#"""##% ##??????????? | | ????????###????"" ##""" & #??????????? | | ????????????????"" # ##??????????? | | ???????????????# " # ### #???????????? | | ?????????????????#" ##?## #??????????? | | ?????????????????#" ##?# #??????????? | | ??????????????# #### #??????????? | | ??????????????# ## #?####??????????? | | ??????????????## ?## ##???????????????? | +----------------------------------------------------+ Best States ------------- Heat Dissipation 25 Energy Generation 15 Energy Capacity 200 Matter Stores 300 Matter Capacity 300 Sight Range 16 Robot Scan Range 14 Terrain Scan Range 16 Terrain Scan Density 10 Resistance: KI 35 Resistance: TH 35 Resistance: EX 35 Resistance: EM 35 Resistance: I 35 Resistance: S 35 Resistance: P 35 Evasion (%) 63 Offensive Hacking 20 Item Schematics ----------------- None Robot Schematics ------------------ None Fabricated ------------ Nothing Repaired ---------- Nothing Studied --------- None Alien Tech Used ----------------- None Achievements -------------- None Challenges ------------ None Game ------ Seed SwordGlidesysPower Manual? 0 Play Time 00:33:07 Cumulative 187.1 hours Start 2025.12.10 @ 13:48:42 End 2025.12.10 @ 15:27:36 Sessions 1 Manual Loads 0 Difficulty Explorer Special Mode None Game No. 265 Rogue 0 Adventurer 0 Explorer 265 Win Type - Total 0 Types 0/0/0/0/0/0/0/0/0/0 Lore% 70 Gallery% 67 Achievement% 53 Wizard Run 0 Options --------- Layout 1 ASCII 0 Keyboard 0 Movement Mouse Keybinds 0 Fullscreen 1 Font 24/Smallcaps Map View 50x35 Zoom Use 0% Tactical HUD 1 Map Filters NONE Filters NONE Steam 1 RUN: 9ee686b1-6d9a-404d-a3ad-87a3988f98cd